[Event "*** SCC Grand Prix: Titled Tuesday Blitz"]
[Site "Chess.com"]
[Date "2020.06.02"]
[Round "10"]
[White "Gmedmundo"]
[Black "DLR7"]
[Result "0-1"]
[WhiteElo "2518"]
[BlackElo "2683"]
[TimeControl "180+1"]
[EndTime "11:57:54 PDT"]
[Termination "DLR7 won by resignation"]

1. e4 {[%clk 0:03:00.9]} 1... c5 {[%clk 0:02:48.8]} 2. Nf3 {[%clk 0:03:00.5]}
2... Nc6 {[%clk 0:02:49.2]} 3. Bb5 {[%clk 0:02:59.7]} 3... g6 {[%clk 0:02:19.3]}
4. Bxc6 {[%clk 0:02:58.4]} 4... bxc6 {[%clk 0:02:18.6]} 5. O-O {[%clk
0:02:57.3]} 5... Bg7 {[%clk 0:02:18.8]} 6. Re1 {[%clk 0:02:56.7]} 6... Nf6
{[%clk 0:02:17.6]} 7. e5 {[%clk 0:02:55.9]} 7... Nd5 {[%clk 0:02:16]} 8. c4
{[%clk 0:02:55.2]} 8... Nc7 {[%clk 0:02:15]} 9. d4 {[%clk 0:02:54.4]} 9... cxd4
{[%clk 0:02:11.1]} 10. Qxd4 {[%clk 0:02:53.7]} 10... O-O {[%clk 0:01:47.3]} 11.
Qh4 {[%clk 0:02:50.6]} 11... f6 {[%clk 0:01:45.7]} 12. Bd2 {[%clk 0:02:45.7]}
12... Ne6 {[%clk 0:01:43.5]} 13. Bc3 {[%clk 0:02:28.4]} 13... Rb8 {[%clk
0:01:20.4]} 14. Nbd2 {[%clk 0:02:23.3]} 14... fxe5 {[%clk 0:01:15.2]} 15. Nxe5
{[%clk 0:02:22.5]} 15... c5 {[%clk 0:01:10.9]} 16. Rad1 {[%clk 0:01:59.3]} 16...
Qe8 {[%clk 0:01:05.3]} 17. Ndf3 {[%clk 0:01:37.7]} 17... d6 {[%clk 0:01:01.9]}
18. Ng4 {[%clk 0:01:35.4]} 18... h5 {[%clk 0:01:01.9]} 19. Bxg7 {[%clk
0:01:30.5]} 19... Kxg7 {[%clk 0:00:57.5]} 20. Ne3 {[%clk 0:01:22.3]} 20... Rf4
{[%clk 0:00:58]} 21. Qg3 {[%clk 0:01:20.9]} 21... Rxb2 {[%clk 0:00:55]} 22. Ng5
{[%clk 0:01:06.1]} 22... Rfxf2 {[%clk 0:00:42.7]} 23. Nf5+ {[%clk 0:00:47.6]}
23... Kh8 {[%clk 0:00:31.8]} 24. Nxe6 {[%clk 0:00:43.3]} 24... Rxg2+ {[%clk
0:00:30]} 25. Qxg2 {[%clk 0:00:40]} 25... Rxg2+ {[%clk 0:00:30.3]} 26. Kxg2
{[%clk 0:00:39.5]} 26... gxf5 {[%clk 0:00:27.8]} 27. Kf2 {[%clk 0:00:32.4]}
27... Qf7 {[%clk 0:00:20.2]} 28. Ng5 {[%clk 0:00:25]} 28... Qxc4 {[%clk
0:00:19.5]} 29. Rxe7 {[%clk 0:00:21.8]} 29... Qh4+ {[%clk 0:00:18.7]} 30. Kf1
{[%clk 0:00:15.9]} 30... Ba6+ {[%clk 0:00:18.6]} 0-1

[Event "*** SCC Grand Prix: Titled Tuesday Blitz"]
[Site "Chess.com"]
[Date "2020.06.02"]
[Round "10"]
[White "Muradore"]
[Black "guillembaches"]
[Result "1-0"]
[WhiteElo "2618"]
[BlackElo "2450"]
[TimeControl "180+1"]
[EndTime "11:57:55 PDT"]
[Termination "Muradore won on time"]

1. e4 {[%clk 0:02:59.8]} 1... c5 {[%clk 0:02:59.8]} 2. c3 {[%clk 0:02:59.5]}
2... d5 {[%clk 0:02:59.4]} 3. d3 {[%clk 0:02:59.5]} 3... e5 {[%clk 0:02:56.6]}
4. Qe2 {[%clk 0:02:58.7]} 4... Nc6 {[%clk 0:02:54]} 5. g3 {[%clk 0:02:57.7]}
5... Nf6 {[%clk 0:02:52.1]} 6. Bg2 {[%clk 0:02:58.1]} 6... Be7 {[%clk
0:02:51.8]} 7. exd5 {[%clk 0:02:56]} 7... Nxd5 {[%clk 0:02:51.3]} 8. Nf3 {[%clk
0:02:56.9]} 8... f6 {[%clk 0:02:46.8]} 9. O-O {[%clk 0:02:55.6]} 9... O-O {[%clk
0:02:46.6]} 10. a4 {[%clk 0:02:56.3]} 10... Bg4 {[%clk 0:02:43]} 11. Nbd2 {[%clk
0:02:56]} 11... Qd7 {[%clk 0:02:35.7]} 12. Nc4 {[%clk 0:02:54.5]} 12... Rad8
{[%clk 0:02:31.1]} 13. Qc2 {[%clk 0:02:54.7]} 13... Rfe8 {[%clk 0:02:18.3]} 14.
a5 {[%clk 0:02:53.9]} 14... Bf8 {[%clk 0:02:17.4]} 15. Re1 {[%clk 0:02:47.8]}
15... Kh8 {[%clk 0:02:11]} 16. Qb3 {[%clk 0:02:46.8]} 16... Bf5 {[%clk 0:01:58]}
17. a6 {[%clk 0:02:37.9]} 17... b6 {[%clk 0:01:54.5]} 18. Rd1 {[%clk 0:02:36.3]}
18... Nde7 {[%clk 0:01:48.3]} 19. Be3 {[%clk 0:02:35.5]} 19... Nd5 {[%clk
0:01:28.6]} 20. Ne1 {[%clk 0:02:30.6]} 20... Be6 {[%clk 0:01:26]} 21. Qb5 {[%clk
0:02:27.1]} 21... Rc8 {[%clk 0:01:15.5]} 22. Qa4 {[%clk 0:02:17.1]} 22... Red8
{[%clk 0:01:12.1]} 23. Qc2 {[%clk 0:02:16]} 23... Nxe3 {[%clk 0:01:07.7]} 24.
Nxe3 {[%clk 0:02:15]} 24... Nd4 {[%clk 0:01:02.2]} 25. cxd4 {[%clk 0:02:11.1]}
25... cxd4 {[%clk 0:01:02.2]} 26. Nc4 {[%clk 0:02:11.6]} 26... b5 {[%clk
0:01:02.6]} 27. b3 {[%clk 0:02:12.2]} 27... bxc4 {[%clk 0:01:02.7]} 28. bxc4
{[%clk 0:02:13.1]} 28... Bb4 {[%clk 0:00:53.7]} 29. Rab1 {[%clk 0:02:05.6]}
29... Qd6 {[%clk 0:00:53.7]} 30. Bb7 {[%clk 0:02:03.9]} 30... Rc7 {[%clk
0:00:49.1]} 31. Qa4 {[%clk 0:02:01.2]} 31... Bc3 {[%clk 0:00:40.5]} 32. Nc2
{[%clk 0:01:56.6]} 32... Bd7 {[%clk 0:00:40.6]} 33. Qb3 {[%clk 0:01:50.5]} 33...
h5 {[%clk 0:00:38.1]} 34. h4 {[%clk 0:01:46]} 34... Bg4 {[%clk 0:00:37.5]} 35.
Rf1 {[%clk 0:01:40.1]} 35... f5 {[%clk 0:00:36.5]} 36. Na3 {[%clk 0:01:28.2]}
36... Qg6 {[%clk 0:00:20.7]} 37. Nb5 {[%clk 0:01:24.4]} 37... Rf7 {[%clk
0:00:20.6]} 38. Nxc3 {[%clk 0:01:24.2]} 38... dxc3 {[%clk 0:00:20.8]} 39. Qxc3
{[%clk 0:01:24.4]} 39... f4 {[%clk 0:00:20.5]} 40. Qxe5 {[%clk 0:01:22.2]} 40...
Rxd3 {[%clk 0:00:12.8]} 41. Be4 {[%clk 0:01:19.7]} 41... Bf5 {[%clk 0:00:12]}
42. Rb8+ {[%clk 0:01:08.7]} 42... Kh7 {[%clk 0:00:11.1]} 43. Qe8 {[%clk
0:01:08.6]} 1-0

[Event "*** SCC Grand Prix: Titled Tuesday Blitz"]
[Site "Chess.com"]
[Date "2020.06.02"]
[Round "10"]
[White "SergeyKarjakin"]
[Black "OparinGrigoriy"]
[Result "1/2-1/2"]
[WhiteElo "2974"]
[BlackElo "2941"]
[TimeControl "180+1"]
[EndTime "11:57:57 PDT"]
[Termination "Game drawn by repetition"]

1. e4 {[%clk 0:03:00.9]} 1... e5 {[%clk 0:03:00.1]} 2. Nf3 {[%clk 0:03:00.8]}
2... Nc6 {[%clk 0:03:00.3]} 3. Bc4 {[%clk 0:03:01]} 3... Nf6 {[%clk 0:02:59.3]}
4. d3 {[%clk 0:03:00.8]} 4... h6 {[%clk 0:02:58.3]} 5. c3 {[%clk 0:02:53.9]}
5... g5 {[%clk 0:02:56.1]} 6. d4 {[%clk 0:02:50.6]} 6... d6 {[%clk 0:02:54.9]}
7. dxe5 {[%clk 0:02:47.9]} 7... dxe5 {[%clk 0:02:53.3]} 8. Qxd8+ {[%clk
0:02:47.4]} 8... Nxd8 {[%clk 0:02:54.2]} 9. Nxe5 {[%clk 0:02:47.3]} 9... Nxe4
{[%clk 0:02:52.3]} 10. O-O {[%clk 0:02:46.2]} 10... Nd6 {[%clk 0:02:44.3]} 11.
Bb3 {[%clk 0:02:36.3]} 11... Be6 {[%clk 0:02:44.2]} 12. Re1 {[%clk 0:02:19.4]}
12... Bg7 {[%clk 0:02:33.6]} 13. f4 {[%clk 0:02:16.2]} 13... O-O {[%clk
0:01:44.6]} 14. fxg5 {[%clk 0:02:11.9]} 14... Bxb3 {[%clk 0:01:36.1]} 15. axb3
{[%clk 0:02:11.3]} 15... hxg5 {[%clk 0:01:36.7]} 16. Nd7 {[%clk 0:01:58.4]}
16... Re8 {[%clk 0:01:36.1]} 17. Rxe8+ {[%clk 0:01:56.4]} 17... Nxe8 {[%clk
0:01:37]} 18. Nc5 {[%clk 0:01:43.5]} 18... g4 {[%clk 0:01:25.1]} 19. Nd2 {[%clk
0:01:37.3]} 19... Nd6 {[%clk 0:01:13.1]} 20. Nde4 {[%clk 0:01:30.9]} 20... Nxe4
{[%clk 0:01:13.2]} 21. Nxe4 {[%clk 0:01:31.8]} 21... Ne6 {[%clk 0:01:11.5]} 22.
Ng3 {[%clk 0:01:18.7]} 22... a6 {[%clk 0:01:00]} 23. Be3 {[%clk 0:01:18.1]}
23... Rd8 {[%clk 0:00:58.1]} 24. Nf5 {[%clk 0:01:13]} 24... Kh7 {[%clk
0:00:51.9]} 25. Kf2 {[%clk 0:00:55.6]} 25... Kg6 {[%clk 0:00:28.2]} 26. Nh4+
{[%clk 0:00:54.9]} 26... Kh7 {[%clk 0:00:27.9]} 27. Ke2 {[%clk 0:00:46.1]} 27...
Bf6 {[%clk 0:00:25.5]} 28. Nf5 {[%clk 0:00:36.9]} 28... Kg6 {[%clk 0:00:26]} 29.
Ng3 {[%clk 0:00:34.2]} 29... Be5 {[%clk 0:00:24.8]} 30. Nf1 {[%clk 0:00:27.9]}
30... f5 {[%clk 0:00:23.5]} 31. g3 {[%clk 0:00:28.2]} 31... f4 {[%clk
0:00:18.8]} 32. gxf4 {[%clk 0:00:27.9]} 32... Bxf4 {[%clk 0:00:18.2]} 33. Ra4
{[%clk 0:00:25.9]} 33... Kf5 {[%clk 0:00:16.9]} 34. Ra5+ {[%clk 0:00:25.1]}
34... Kg6 {[%clk 0:00:17.3]} 35. Ra4 {[%clk 0:00:23.5]} 35... Kf5 {[%clk
0:00:17.7]} 36. Ra5+ {[%clk 0:00:19.7]} 36... Kg6 {[%clk 0:00:18.1]} 37. Ra4
{[%clk 0:00:19.9]} 1/2-1/2

[Event "*** SCC Grand Prix: Titled Tuesday Blitz"]
[Site "Chess.com"]
[Date "2020.06.02"]
[Round "10"]
[White "wonderfultime"]
[Black "AlexSuv"]
[Result "0-1"]
[WhiteElo "2970"]
[BlackElo "2849"]
[TimeControl "180+1"]
[EndTime "11:57:59 PDT"]
[Termination "AlexSuv won by resignation"]

1. d4 {[%clk 0:03:00.9]} 1... Nf6 {[%clk 0:02:51.3]} 2. Nf3 {[%clk 0:03:00.9]}
2... e6 {[%clk 0:02:50]} 3. Bf4 {[%clk 0:03:01.1]} 3... b6 {[%clk 0:02:48.8]} 4.
e3 {[%clk 0:03:01.5]} 4... Bb7 {[%clk 0:02:48.9]} 5. Bd3 {[%clk 0:03:01.9]} 5...
d6 {[%clk 0:02:49.2]} 6. h3 {[%clk 0:03:01.6]} 6... Nbd7 {[%clk 0:02:49.4]} 7.
O-O {[%clk 0:03:02.1]} 7... Qe7 {[%clk 0:02:49.6]} 8. Bh2 {[%clk 0:03:01.8]}
8... g6 {[%clk 0:02:49.9]} 9. a4 {[%clk 0:03:01.1]} 9... a6 {[%clk 0:02:44]} 10.
Qe2 {[%clk 0:03:00.7]} 10... Bg7 {[%clk 0:02:43.1]} 11. e4 {[%clk 0:03:01.1]}
11... e5 {[%clk 0:02:42.8]} 12. Nbd2 {[%clk 0:02:54.6]} 12... O-O {[%clk
0:02:41.4]} 13. c3 {[%clk 0:02:54.1]} 13... Rfe8 {[%clk 0:02:37.9]} 14. Rfe1
{[%clk 0:02:54.2]} 14... Nh5 {[%clk 0:02:37.7]} 15. Qe3 {[%clk 0:02:52.3]} 15...
c5 {[%clk 0:02:27.7]} 16. dxe5 {[%clk 0:02:40.3]} 16... Nxe5 {[%clk 0:02:11.5]}
17. Nxe5 {[%clk 0:02:39.8]} 17... Bxe5 {[%clk 0:02:08.5]} 18. f4 {[%clk
0:02:39.3]} 18... Bg7 {[%clk 0:02:08.3]} 19. Nc4 {[%clk 0:02:38.5]} 19... b5
{[%clk 0:02:04.7]} 20. Nb6 {[%clk 0:02:34.7]} 20... Rab8 {[%clk 0:01:37]} 21.
axb5 {[%clk 0:02:31.3]} 21... axb5 {[%clk 0:01:37.9]} 22. Bxb5 {[%clk
0:02:27.9]} 22... Red8 {[%clk 0:01:38.5]} 23. Bc4 {[%clk 0:02:26.9]} 23... Kh8
{[%clk 0:01:30.1]} 24. Ra7 {[%clk 0:02:15.7]} 24... Qe8 {[%clk 0:01:26.8]} 25.
Nd5 {[%clk 0:02:11.8]} 25... Bxd5 {[%clk 0:01:09.3]} 26. Bxd5 {[%clk 0:02:12.7]}
26... Rxb2 {[%clk 0:01:09.2]} 27. Bxf7 {[%clk 0:01:55.7]} 27... Qf8 {[%clk
0:01:08]} 28. e5 {[%clk 0:01:54.2]} 28... dxe5 {[%clk 0:01:01.4]} 29. fxe5
{[%clk 0:01:55.1]} 29... Rdd2 {[%clk 0:01:01.3]} 30. Qf3 {[%clk 0:01:52.1]}
30... Qd8 {[%clk 0:00:32]} 31. Rea1 {[%clk 0:01:07.9]} 31... Rxg2+ {[%clk
0:00:29.5]} 32. Qxg2 {[%clk 0:01:06.4]} 32... Rxg2+ {[%clk 0:00:28.4]} 33. Kxg2
{[%clk 0:01:07.3]} 33... Qd2+ {[%clk 0:00:28.6]} 34. Kh1 {[%clk 0:01:07.5]}
34... Bh6 {[%clk 0:00:19.4]} 35. Ra8+ {[%clk 0:01:02]} 35... Kg7 {[%clk
0:00:19.9]} 36. Bc4 {[%clk 0:01:00.6]} 36... Bf4 {[%clk 0:00:19.6]} 37. R8a7+
{[%clk 0:00:49.1]} 37... Kh6 {[%clk 0:00:19.8]} 38. R7a2 {[%clk 0:00:49.6]}
38... Qxc3 {[%clk 0:00:18.1]} 39. Bxf4+ {[%clk 0:00:44.9]} 39... Nxf4 {[%clk
0:00:19]} 40. Bf1 {[%clk 0:00:45.7]} 40... Qxe5 {[%clk 0:00:17.4]} 41. Rc1
{[%clk 0:00:42.2]} 41... Qe4+ {[%clk 0:00:17.1]} 42. Bg2 {[%clk 0:00:39.6]}
42... Nxg2 {[%clk 0:00:17.1]} 43. Rxg2 {[%clk 0:00:40.5]} 43... c4 {[%clk
0:00:17.8]} 44. Kh2 {[%clk 0:00:40.9]} 44... Qf4+ {[%clk 0:00:18.2]} 0-1

[Event "*** SCC Grand Prix: Titled Tuesday Blitz"]
[Site "Chess.com"]
[Date "2020.06.02"]
[Round "10"]
[White "rpragchess"]
[Black "AndrewMaco"]
[Result "0-1"]
[WhiteElo "2842"]
[BlackElo "2660"]
[TimeControl "180+1"]
[EndTime "11:57:59 PDT"]
[Termination "AndrewMaco won by resignation"]

1. Nf3 {[%clk 0:03:00.9]} 1... Nf6 {[%clk 0:02:59.6]} 2. g3 {[%clk 0:02:58.6]}
2... d5 {[%clk 0:02:59.4]} 3. Bg2 {[%clk 0:02:56.9]} 3... e6 {[%clk 0:03:00.3]}
4. O-O {[%clk 0:02:55.2]} 4... Be7 {[%clk 0:03:00.7]} 5. d3 {[%clk 0:02:56.1]}
5... O-O {[%clk 0:03:00.8]} 6. Nbd2 {[%clk 0:02:57]} 6... c5 {[%clk 0:03:01.3]}
7. e4 {[%clk 0:02:57.6]} 7... Nc6 {[%clk 0:03:01.9]} 8. Re1 {[%clk 0:02:57.7]}
8... Qc7 {[%clk 0:03:02.2]} 9. Nf1 {[%clk 0:02:51.7]} 9... b5 {[%clk 0:02:59]}
10. e5 {[%clk 0:02:51.4]} 10... Nd7 {[%clk 0:02:58.3]} 11. Bf4 {[%clk 0:02:52]}
11... Bb7 {[%clk 0:02:56.4]} 12. h4 {[%clk 0:02:52.1]} 12... Rfc8 {[%clk
0:02:55.8]} 13. N1h2 {[%clk 0:02:50.1]} 13... Qd8 {[%clk 0:02:54.9]} 14. Ng4
{[%clk 0:02:50.3]} 14... h6 {[%clk 0:02:54.2]} 15. Qd2 {[%clk 0:02:49.8]} 15...
Bf8 {[%clk 0:02:54.3]} 16. c3 {[%clk 0:02:49.2]} 16... a5 {[%clk 0:02:50.6]} 17.
Nfh2 {[%clk 0:02:35.8]} 17... Ne7 {[%clk 0:02:41.2]} 18. Nxh6+ {[%clk
0:02:25.4]} 18... gxh6 {[%clk 0:02:39.9]} 19. Bxh6 {[%clk 0:02:26.3]} 19... Bxh6
{[%clk 0:02:30.9]} 20. Qxh6 {[%clk 0:02:27.2]} 20... Nf5 {[%clk 0:02:30.3]} 21.
Qf4 {[%clk 0:02:26.9]} 21... Qf8 {[%clk 0:02:21.6]} 22. Ng4 {[%clk 0:02:25.9]}
22... Qg7 {[%clk 0:02:21]} 23. c4 {[%clk 0:02:14.9]} 23... bxc4 {[%clk
0:02:07.6]} 24. dxc4 {[%clk 0:02:15.8]} 24... Nd4 {[%clk 0:02:07.9]} 25. cxd5
{[%clk 0:02:11.9]} 25... Bxd5 {[%clk 0:02:08.8]} 26. Nf6+ {[%clk 0:02:02.5]}
26... Nxf6 {[%clk 0:02:04.2]} 27. exf6 {[%clk 0:02:03.4]} 27... Qh7 {[%clk
0:02:00.1]} 28. Re5 {[%clk 0:01:56.4]} 28... Rd8 {[%clk 0:01:27.9]} 29. Qg4+
{[%clk 0:01:38.3]} 29... Kf8 {[%clk 0:01:24.9]} 30. Rh5 {[%clk 0:01:36.6]} 30...
Qg8 {[%clk 0:01:17.9]} 31. Rg5 {[%clk 0:01:36.3]} 31... Qh8 {[%clk 0:01:14.1]}
32. Rg7 {[%clk 0:01:36.3]} 32... Bxg2 {[%clk 0:01:09.3]} 33. Kxg2 {[%clk
0:01:35.4]} 33... Nf5 {[%clk 0:01:08.8]} 34. Rg5 {[%clk 0:01:32.1]} 34... Qxf6
{[%clk 0:01:08.7]} 35. Re1 {[%clk 0:01:31.5]} 35... Rd2 {[%clk 0:01:01.6]} 36.
Qf4 {[%clk 0:01:10.9]} 36... Nxh4+ {[%clk 0:00:57.2]} 37. Qxh4 {[%clk
0:01:04.5]} 37... Qxf2+ {[%clk 0:00:57.8]} 38. Kh3 {[%clk 0:01:04.5]} 38... Qg2+
{[%clk 0:00:29.8]} 39. Kg4 {[%clk 0:01:01.7]} 39... Rd4+ {[%clk 0:00:30.3]} 40.
Kh5 {[%clk 0:01:01.6]} 40... Rxh4+ {[%clk 0:00:30.4]} 41. gxh4 {[%clk
0:01:02.2]} 41... Qxb2 {[%clk 0:00:29.6]} 42. a3 {[%clk 0:00:57.5]} 42... Ke7
{[%clk 0:00:29.1]} 43. a4 {[%clk 0:00:57.9]} 43... Qd4 {[%clk 0:00:26.3]} 44.
Rxe6+ {[%clk 0:00:53.7]} 44... Kxe6 {[%clk 0:00:20.9]} 45. Rg7 {[%clk
0:00:52.1]} 45... Rh8+ {[%clk 0:00:18.4]} 0-1

[Event "*** SCC Grand Prix: Titled Tuesday Blitz"]
[Site "Chess.com"]
[Date "2020.06.02"]
[Round "10"]
[White "Logman74"]
[Black "robertofabregas"]
[Result "1-0"]
[WhiteElo "2366"]
[BlackElo "2082"]
[TimeControl "180+1"]
[EndTime "11:58:00 PDT"]
[Termination "Logman74 won on time"]

1. e4 {[%clk 0:03:00.9]} 1... c5 {[%clk 0:03:00.3]} 2. Nf3 {[%clk 0:02:59.6]}
2... d6 {[%clk 0:03:00.8]} 3. Bb5+ {[%clk 0:02:57]} 3... Bd7 {[%clk 0:03:00.2]}
4. a4 {[%clk 0:02:55.6]} 4... Nc6 {[%clk 0:02:59]} 5. O-O {[%clk 0:02:54.6]}
5... a6 {[%clk 0:02:59.4]} 6. Bxc6 {[%clk 0:02:53.9]} 6... Bxc6 {[%clk
0:03:00.3]} 7. Qe2 {[%clk 0:02:53.9]} 7... g6 {[%clk 0:03:00.7]} 8. d4 {[%clk
0:02:53.6]} 8... cxd4 {[%clk 0:02:55.3]} 9. Nxd4 {[%clk 0:02:53.1]} 9... Bg7
{[%clk 0:02:55.8]} 10. Nxc6 {[%clk 0:02:52.9]} 10... bxc6 {[%clk 0:02:56.3]} 11.
Nc3 {[%clk 0:02:51.6]} 11... Nf6 {[%clk 0:02:53.4]} 12. Bg5 {[%clk 0:02:49.8]}
12... Qc7 {[%clk 0:02:44.5]} 13. Rad1 {[%clk 0:02:43.8]} 13... O-O {[%clk
0:02:43.7]} 14. Qc4 {[%clk 0:02:42.6]} 14... Rfc8 {[%clk 0:02:28.7]} 15. Rfe1
{[%clk 0:02:37]} 15... Nd7 {[%clk 0:02:11.6]} 16. Qe2 {[%clk 0:02:24.3]} 16...
Nc5 {[%clk 0:02:03.6]} 17. Qe3 {[%clk 0:02:19.7]} 17... Rab8 {[%clk 0:01:55.5]}
18. b3 {[%clk 0:02:16.3]} 18... Rb4 {[%clk 0:01:43.6]} 19. Bh6 {[%clk 0:01:51]}
19... Bf6 {[%clk 0:01:09.4]} 20. f4 {[%clk 0:01:38.3]} 20... Ne6 {[%clk
0:00:32.1]} 21. e5 {[%clk 0:01:34.3]} 21... dxe5 {[%clk 0:00:31.3]} 22. fxe5
{[%clk 0:01:34]} 22... Bg7 {[%clk 0:00:21.9]} 23. Bxg7 {[%clk 0:01:32.3]} 23...
Kxg7 {[%clk 0:00:22.8]} 24. Kh1 {[%clk 0:01:14.2]} 24... Rd8 {[%clk 0:00:22.2]}
25. Rxd8 {[%clk 0:01:11.5]} 25... Qxd8 {[%clk 0:00:22.7]} 26. Rd1 {[%clk
0:01:08.2]} 26... Qc7 {[%clk 0:00:23.2]} 27. Kg1 {[%clk 0:01:05.4]} 27... Rh4
{[%clk 0:00:16.3]} 28. h3 {[%clk 0:01:00.2]} 28... Rh5 {[%clk 0:00:11.9]} 29.
Re1 {[%clk 0:00:59.2]} 29... c5 {[%clk 0:00:09.4]} 30. Nd5 {[%clk 0:00:56.5]}
30... Qb7 {[%clk 0:00:09.7]} 31. c4 {[%clk 0:00:56]} 31... Rf5 {[%clk
0:00:09.2]} 32. Qe4 {[%clk 0:00:53.9]} 32... Nd4 {[%clk 0:00:08.1]} 33. b4
{[%clk 0:00:51.8]} 33... Ne6 {[%clk 0:00:04.7]} 34. b5 {[%clk 0:00:50.6]} 34...
axb5 {[%clk 0:00:05.2]} 35. axb5 {[%clk 0:00:50.4]} 35... Nd4 {[%clk 0:00:06.1]}
36. b6 {[%clk 0:00:49.6]} 36... Qa8 {[%clk 0:00:06.5]} 37. Nxe7 {[%clk
0:00:47.2]} 37... Qxe4 {[%clk 0:00:03]} 38. Rxe4 {[%clk 0:00:46.8]} 1-0

[Event "*** SCC Grand Prix: Titled Tuesday Blitz"]
[Site "Chess.com"]
[Date "2020.06.02"]
[Round "10"]
[White "cassoulet"]
[Black "Gajuchess"]
[Result "0-1"]
[WhiteElo "2618"]
[BlackElo "2764"]
[TimeControl "180+1"]
[EndTime "11:58:06 PDT"]
[Termination "Gajuchess won by checkmate"]

1. e4 {[%clk 0:03:00.9]} 1... c5 {[%clk 0:02:56.1]} 2. Nf3 {[%clk 0:03:00.6]}
2... e6 {[%clk 0:02:57]} 3. d4 {[%clk 0:03:00.2]} 3... cxd4 {[%clk 0:02:57.9]}
4. Nxd4 {[%clk 0:03:01.1]} 4... a6 {[%clk 0:02:58.8]} 5. Nc3 {[%clk 0:03:01.5]}
5... Qc7 {[%clk 0:02:58.9]} 6. Bd3 {[%clk 0:03:00.1]} 6... Nf6 {[%clk
0:02:59.4]} 7. O-O {[%clk 0:02:59.1]} 7... d6 {[%clk 0:03:00]} 8. Be3 {[%clk
0:02:59.4]} 8... Be7 {[%clk 0:03:00.7]} 9. f4 {[%clk 0:03:00]} 9... b5 {[%clk
0:03:00]} 10. Qf3 {[%clk 0:02:57.7]} 10... Bb7 {[%clk 0:02:59.4]} 11. Rae1
{[%clk 0:02:57.2]} 11... b4 {[%clk 0:02:58.3]} 12. Nd1 {[%clk 0:02:55.9]} 12...
Nbd7 {[%clk 0:02:56]} 13. Nf2 {[%clk 0:02:53.3]} 13... g6 {[%clk 0:02:55]} 14.
Qh3 {[%clk 0:02:52]} 14... h5 {[%clk 0:02:54.6]} 15. e5 {[%clk 0:02:34.8]} 15...
dxe5 {[%clk 0:02:41.2]} 16. Nxe6 {[%clk 0:02:28.9]} 16... fxe6 {[%clk
0:02:41.2]} 17. Bxg6+ {[%clk 0:02:27.4]} 17... Kd8 {[%clk 0:02:40.6]} 18. fxe5
{[%clk 0:02:18.4]} 18... Nd5 {[%clk 0:02:40.7]} 19. Qxe6 {[%clk 0:02:14.8]}
19... Nxe3 {[%clk 0:02:34.4]} 20. Rxe3 {[%clk 0:02:15.7]} 20... Qb6 {[%clk
0:02:34.4]} 21. Qh3 {[%clk 0:02:07]} 21... Qxg6 {[%clk 0:02:32.2]} 22. Rd3
{[%clk 0:01:55]} 22... Qxg2+ {[%clk 0:02:28.1]} 23. Qxg2 {[%clk 0:01:51.1]}
23... Bxg2 {[%clk 0:02:29]} 24. Kxg2 {[%clk 0:01:51.9]} 24... Kc7 {[%clk
0:02:29.5]} 25. Rfd1 {[%clk 0:01:18.8]} 25... Rhg8+ {[%clk 0:02:15.8]} 26. Kh1
{[%clk 0:01:15.9]} 26... Rad8 {[%clk 0:01:54.6]} 27. e6 {[%clk 0:00:43.9]} 27...
Nc5 {[%clk 0:01:53.9]} 28. Rd5 {[%clk 0:00:42.8]} 28... Nxe6 {[%clk 0:01:48]}
29. Rxh5 {[%clk 0:00:40.1]} 29... Rxd1+ {[%clk 0:01:14.8]} 30. Nxd1 {[%clk
0:00:41]} 30... Bc5 {[%clk 0:01:15]} 31. h4 {[%clk 0:00:32]} 31... Rd8 {[%clk
0:01:14.5]} 32. Ne3 {[%clk 0:00:25.8]} 32... Bxe3 {[%clk 0:01:13.5]} 33. Re5
{[%clk 0:00:26]} 33... Rd1+ {[%clk 0:01:11.4]} 34. Kg2 {[%clk 0:00:19.1]} 34...
Nf4+ {[%clk 0:01:10.2]} 35. Kf3 {[%clk 0:00:18.3]} 35... Bc1 {[%clk 0:01:11.1]}
36. c3 {[%clk 0:00:14.9]} 36... bxc3 {[%clk 0:01:10.4]} 37. bxc3 {[%clk
0:00:15.8]} 37... Rd3+ {[%clk 0:01:08.8]} 38. Kg4 {[%clk 0:00:15.2]} 38... Rxc3
{[%clk 0:01:09]} 39. Ra5 {[%clk 0:00:14.8]} 39... Kb6 {[%clk 0:01:07.4]} 40. Ra4
{[%clk 0:00:13.9]} 40... Nd5 {[%clk 0:01:01.6]} 41. h5 {[%clk 0:00:13.2]} 41...
Rc4+ {[%clk 0:01:00.7]} 42. Rxc4 {[%clk 0:00:12.2]} 42... Ne3+ {[%clk
0:01:01.3]} 43. Kf3 {[%clk 0:00:12.2]} 43... Nxc4 {[%clk 0:01:02.2]} 44. Ke4
{[%clk 0:00:11.2]} 44... Kc5 {[%clk 0:01:01.6]} 45. Kd3 {[%clk 0:00:11.5]} 45...
Kb4 {[%clk 0:01:01.3]} 46. Kc2 {[%clk 0:00:11.3]} 46... Bh6 {[%clk 0:01:00.8]}
47. Kb1 {[%clk 0:00:11.5]} 47... Na3+ {[%clk 0:00:59.7]} 48. Kb2 {[%clk
0:00:10.1]} 48... a5 {[%clk 0:00:55.8]} 49. Ka1 {[%clk 0:00:04.6]} 49... Bg7#
{[%clk 0:00:56.2]} 0-1